fUSD/lending_fUSD_20250310
["ID","MTS","AMOUNT","RATE_DAILY","PERIOD"]
[355797388,1741569046406,-1540.18,9.999e-05,2]
[355797389,1741569046415,-733.59477016,9.999e-05,2]
[355797390,1741569046425,-997.0,0.0001,2]
[355797391,1741569046434,-4022.19997306,0.0001,2]
[355797392,1741569046445,-4140.41339561,0.0001,2]
[355797393,1741569046516,-1501.15860291,0.0001,2]
[355797394,1741569046527,-824.54141991,0.0001,2]
[355797395,1741569046635,-430.93522144,0.0001,2]
[355797403,1741569211079,-170.81,9e-05,2]
[355797404,1741569271338,-150.0,9e-05,2]
[355797405,1741569272689,-229.19,9e-05,2]
[355797406,1741569295349,2000.0,0.00027524,30]
[355797407,1741569324851,2058.58,0.00027524,30]
[355797409,1741569591564,1500.0,0.00028,120]
[355797410,1741569637432,-150.0,9.127e-05,2]
[355797411,1741569710915,-204.64450131,8.219e-05,2]
[355797412,1741569875776,-1053.25549869,8.219e-05,2]
[355797413,1741569954558,-162.89,9e-05,2]
[355797417,1741570020834,-267.11,8.948e-05,2]
[355797419,1741570077014,-32.89,8.948e-05,2]
[355797420,1741570077039,-117.11,9e-05,2]
[355797421,1741570081295,-187.11,9e-05,2]
[355797462,1741570231669,-250.0,8.761e-05,2]
[355797463,1741570231679,-322.44877302,9e-05,2]
[355797464,1741570231688,-1145.52356263,9.041e-05,2]
[355797465,1741570231699,-854.47643737,9.041e-05,2]
[355797466,1741570231709,-185.71,9.117e-05,2]
[355797467,1741570231718,-63.50441084,9.127e-05,2]
[355797468,1741570231729,-365.19994533,9.127e-05,2]
[355797469,1741570231756,-133.18564383,9.127e-05,2]
[355797470,1741570231765,-1255.41591856,9.129e-05,2]
[355797471,1741570231776,-927.61514,9.129e-05,2]
[355797472,1741570231788,-756.57894144,9.129e-05,2]
[355797473,1741570231797,-170.82,9.15e-05,2]
[355797474,1741570231806,-436.25,9.216e-05,2]
[355797475,1741570231815,-440.08,9.22e-05,2]
[355797476,1741570231825,-344.93,9.22e-05,2]
[355797477,1741570231834,-1000.0,9.226e-05,2]
[355797478,1741570231844,-300.0,9.229e-05,2]
[355797479,1741570231853,-440.76,9.23e-05,2]
[355797480,1741570231862,-344.93,9.23e-05,2]
[355797481,1741570231873,-440.76,9.278e-05,2]
[355797482,1741570231884,-344.93,9.278e-05,2]
[355797483,1741570231893,-150.0,9.286e-05,2]
[355797484,1741570231903,-4233.16947458,9.287e-05,2]
[355797485,1741570231928,-800.0,9.287e-05,2]
[355797486,1741570231981,-262.18282224,9.287e-05,2]
[355797487,1741570231992,-3035.23390639,9.287e-05,2]
[355797488,1741570232078,-295.44814184,9.287e-05,2]
[355797502,1741570237733,-9712.4213032,9.287e-05,2]
[355797503,1741570237748,-4607.52435175,9.287e-05,2]
[355797504,1741570237760,-286.46,9.287e-05,2]
[355797505,1741570237772,-44897.37776903,9.34e-05,2]
[355797506,1741570237782,-5603.51411424,9.478e-05,2]
[355797507,1741570237795,-689.32368187,9.478e-05,2]
[355797508,1741570237809,-2083.36133953,9.478e-05,2]
[355797509,1741570237822,-1235.0,9.478e-05,2]
[355797510,1741570237836,-498.014838,9.478e-05,2]
[355797511,1741570237850,-1374.5550006,9.478e-05,2]
[355797512,1741570237865,-358.33485164,9.478e-05,2]
[355797513,1741570237892,-449.500001,9.478e-05,2]
[355797514,1741570237908,-736.57390145,9.478e-05,2]
[355797515,1741570237922,-1026.92935832,9.478e-05,2]
[355797516,1741570237936,-400.97885,9.478e-05,2]
[355797517,1741570237951,-480.891175,9.478e-05,2]
[355797518,1741570237964,-528.69395831,9.478e-05,2]
[355797519,1741570237978,-859.54031443,9.478e-05,2]
[355797520,1741570237991,-4453.91398477,9.478e-05,2]
[355797521,1741570238002,-440.76,9.478e-05,2]
[355797523,1741570238013,-300.0,9.478e-05,2]
[355797525,1741570238024,-300.0,9.478e-05,2]
[355797527,1741570238036,-301.06,9.478e-05,2]
[355797529,1741570238048,-302.08,9.478e-05,2]
[355797531,1741570238059,-150.0,9.562e-05,7]
[355797533,1741570238071,-200.0,9.8e-05,3]
[355797536,1741570238082,-647.0218,9.87e-05,2]
[355797538,1741570238094,-450.3655,9.898e-05,2]
[355797540,1741570238105,-150.0,9.898e-05,2]
[355797542,1741570238116,-1000.0,9.9e-05,2]
[355797544,1741570238129,-225.8013,9.9e-05,2]
[355797546,1741570238140,-360.6402,9.9e-05,2]
[355797548,1741570238152,-370.53,9.9e-05,2]
[355797551,1741570238163,-5000.0,9.9e-05,2]
[355797552,1741570238175,-23337.9876,9.9e-05,2]
[355797554,1741570238186,-1625.814,9.964e-05,2]
[355797557,1741570238197,-20482.17,9.97e-05,2]
[355797559,1741570238208,-150.24470554,9.973e-05,2]
[355797561,1741570238220,-151.8753594,9.973e-05,2]
[355797563,1741570238230,-160.074094,9.973e-05,2]
[355797565,1741570238242,-63062.37751764,9.99e-05,2]
[355797567,1741570238252,-5820.1781677,9.998e-05,2]
[355797569,1741570238263,-1823.1714859,9.998e-05,2]
[355797572,1741570238275,-446.0272686,9.998e-05,2]
[355797574,1741570238287,-987.5319489,9.998e-05,2]
[355797576,1741570238298,-482.1840523,9.998e-05,2]
[355797577,1741570238308,-1935.5457726,9.998e-05,2]
[355797578,1741570238320,-4972.1710392,9.998e-05,2]
[355797579,1741570238331,-1000.0,9.999e-05,2]
[355797580,1741570238341,-1558.76,9.999e-05,2]
[355797581,1741570238352,-532.45538472,9.999e-05,2]
[355797582,1741570238364,-1101.0,0.0001,2]
[355797583,1741570238375,-148182.67536449,0.0001,2]
[355797584,1741570238389,-8185.846207,0.0001,2]
[355797585,1741570238407,-1869.42,0.0001,2]
[355797586,1741570238421,-983.76745006,0.0001,2]
[355797587,1741570238435,-794.17380999,0.0001,2]
[355797588,1741570238449,-925.1,0.0001,2]
[355797589,1741570238463,-1723.45869062,0.0001,2]
[355797590,1741570238476,-10946.00630595,0.0001,2]
[355797591,1741570238489,-5748.33832978,0.0001,2]
[355797592,1741570238502,-4106.6159608,0.0001,2]
[355797598,1741570239881,-438.05390023,0.0001,2]
[355797599,1741570239894,-5001.0461434,0.0001,2]
[355797600,1741570239907,-1533.72499912,0.0001,2]
[355797601,1741570239919,-655.28295906,0.0001,2]
[355797602,1741570239971,-5554.14,0.0001,2]
[355797603,1741570240234,-869.30775106,0.0001,2]
[355797622,1741570242915,-886.0,0.0001,2]
[355797623,1741570242924,-30336.81431666,0.0001,2]
[355797624,1741570242950,-697.66731463,0.0001,2]
[355797625,1741570242961,-311.25807615,0.0001,2]
[355797626,1741570242972,-575.84999999,0.0001,2]
[355797627,1741570242987,-937.00797868,0.0001,2]
[355797635,1741570245601,-1237.2,0.0001,2]
[355797636,1741570245691,-5597.82971983,0.0001,2]
[355797637,1741570245703,-163430.53105852,0.0001,2]
[355797638,1741570245918,-2460.37650917,0.0001,2]
[355797639,1741570246013,-10133.0,0.0001,2]
[355797641,1741570246026,-252.71462698,0.0001,2]
[355797646,1741570504839,201.53635257,0.00028,120]
[355797647,1741570507371,157.67946726,0.00028,120]
[355797744,1741571036721,-440.42254486,8.219e-05,2]
[355797745,1741571276075,-237.11,8.219e-05,2]
[355797754,1741571376035,-561.46575584,8.219e-05,2]
[355797761,1741571431780,-31.3416993,8.219e-05,2]
[355797762,1741571431790,-200.0,8.744e-05,2]
[355797763,1741571431800,-338.58,8.775e-05,2]
[355797764,1741571431810,-434.23,8.785e-05,2]
[355797765,1741571431820,-250.0,8.826e-05,2]
[355797766,1741571431830,-376.22,8.973e-05,2]
[355797767,1741571431840,-550.0,9e-05,2]
[355797768,1741571431849,-1261.41,9.041e-05,2]
[355797769,1741571431859,-220.57,9.07e-05,2]
[355797770,1741571431871,-443.81,9.106e-05,2]
[355797771,1741571431881,-206.93,9.107e-05,2]
[355797772,1741571431891,-789.37,9.11e-05,2]
[355797773,1741571431900,-882.95,9.11e-05,2]
[355797774,1741571431909,-441.65,9.178e-05,2]
[355797775,1741571431918,-1000.0,9.287e-05,2]
[355797776,1741571431930,-1195.35,9.29e-05,2]
[355797777,1741571431943,-441.65,9.29e-05,2]
[355797778,1741571431953,-164.96,9.294e-05,2]
[355797779,1741571431963,-150.0,9.562e-05,7]
[355797780,1741571431972,-1150.0,9.7e-05,2]
[355797781,1741571431983,-495.7338,9.89e-05,2]
[355797782,1741571431992,-150.0,9.899e-05,2]
[355797783,1741571432001,-18732.668,9.9e-05,2]
[355797784,1741571432011,-1555.34,9.9e-05,2]
[355797785,1741571432021,-381.78,9.9e-05,2]
[355797786,1741571432031,-5000.0,9.9e-05,2]
[355797787,1741571432040,-1000.0,9.9e-05,2]
[355797788,1741571432050,-500.0,9.95e-05,2]
[355797789,1741571432059,-500.0,9.95e-05,2]
[355797790,1741571432069,-500.0,9.95e-05,2]
[355797791,1741571432078,-500.0,9.95e-05,2]
[355797792,1741571432088,-500.0,9.95e-05,2]
[355797793,1741571432102,-469.58,9.95e-05,2]
[355797794,1741571432111,-487.64066186,9.969e-05,2]
[355797795,1741571432121,-1307.437,9.97e-05,2]
[355797796,1741571432131,-500.44676776,9.973e-05,2]
[355797797,1741571432141,-152.18416179,9.973e-05,2]
[355797798,1741571432151,-282.4582189,9.998e-05,2]
[355797799,1741571432170,-4744.8183646,9.998e-05,2]
[355797800,1741571432182,-4374.4459109,9.998e-05,2]
[355797801,1741571432192,-571.4305515,9.998e-05,2]
[355797802,1741571432201,-1265.1825703,9.998e-05,2]
[355797803,1741571432210,-623.5380754,9.998e-05,2]
[355797804,1741571432220,-2442.1081273,9.998e-05,2]
[355797805,1741571432232,-60.849986,9.998e-05,2]
[355797806,1741571432242,-326.150014,9.998e-05,2]
[355797807,1741571432254,-2547.28936515,9.998e-05,2]
[355797808,1741571432318,-1101.0,9.998e-05,2]
[355797814,1741571437786,-2506.05282945,9.998e-05,2]
[355797815,1741571437795,-1415.87881759,9.998e-05,2]
[355797816,1741571437807,-433.49178807,9.998e-05,2]
[355797817,1741571437822,-3211.91999948,9.998e-05,2]
[355797818,1741571437837,-6611.14087056,9.998e-05,2]
[355797819,1741571437846,-970.64554489,9.999e-05,2]
[355797820,1741571437897,-523.65445511,9.999e-05,2]
[355797821,1741571437906,-134.82397848,9.999e-05,2]
[355797822,1741571437918,-365.17602152,9.999e-05,2]
[355797823,1741571437929,-500.0,9.999e-05,2]
[355797824,1741571437943,-173.35472257,9.999e-05,2]
[355797825,1741571437952,-790.0,0.0001,2]
[355797826,1741571437961,-2346.82837427,0.0001,2]
[355797827,1741571437973,-13039.92283254,0.0001,2]
[355797828,1741571437983,-16713.8712108,0.0001,2]
[355797829,1741571438054,-1099.62597814,0.0001,2]
[355798009,1741571440012,-85824.82398777,0.0001,2]
[355798018,1741571440087,-1142.12174255,0.0001,2]
[355798020,1741571440099,-717.60499998,0.0001,2]
[355798029,1741571440188,-14016.81858139,0.0001,2]
[355798101,1741571442903,-10977.80729397,0.0001,2]
[355798116,1741571445791,-817.55,0.0001,2]
[355798125,1741571637859,2023.94,0.00027524,30]
[355798127,1741571935007,1278.48,8.219e-05,2]
[355798128,1741572298154,15513.0,0.00028,120]
[355798129,1741572451315,-169.29,9.03e-05,2]
[355798141,1741572632049,-171.38,9.046e-05,2]
[355798142,1741572632059,-7003.21119563,9.059e-05,2]
[355798143,1741572632103,-1478.67880437,9.059e-05,2]
[355798144,1741572632112,-250.0,9.076e-05,2]
[355798145,1741572632122,-252.36,9.097e-05,2]
[355798146,1741572632135,-274.88263965,9.113e-05,2]
[355798202,1741572637977,-332.31736035,9.113e-05,2]
[355798203,1741572637988,-166.98,9.358e-05,2]
[355798204,1741572638001,-300.0,9.424e-05,2]
[355798205,1741572638012,-166.59756717,9.425e-05,2]
[355798206,1741572638027,-833.40243283,9.425e-05,2]
[355798207,1741572638039,-150.0,9.562e-05,7]
[355798208,1741572638051,-1034.49703795,9.6e-05,2]
[355798209,1741572638074,-156.50296205,9.6e-05,2]
[355798210,1741572638087,-1559.93572295,9.9e-05,2]
[355798211,1741572638217,-940.06427705,9.9e-05,2]
[355798212,1741572638230,-5294.4768,9.9e-05,2]
[355798213,1741572638247,-5000.0,9.9e-05,2]
[355798214,1741572638260,-3932.0,9.903e-05,2]
[355798215,1741572638272,-150.624,9.903e-05,2]
[355798216,1741572638284,-1175.38,9.969e-05,2]
[355798217,1741572638296,-12979.12,9.97e-05,2]
[355798218,1741572638308,-160.25980056,9.973e-05,2]
[355798219,1741572638323,-150.0,9.997e-05,2]
[355798220,1741572638334,-1033.35077295,9.998e-05,2]
[355798228,1741572639991,-4843.77588695,9.998e-05,2]
[355798229,1741572640003,-7922.0277628,9.998e-05,2]
[355798230,1741572640016,-10608.0585415,9.998e-05,2]
[355798231,1741572640028,-5121.9940254,9.998e-05,2]
[355798232,1741572640039,-1000.0,9.999e-05,2]
[355798233,1741572640051,-1496.22,9.999e-05,2]
[355798234,1741572640062,-500.0,9.999e-05,2]
[355798235,1741572640074,-500.0,9.999e-05,2]
[355798236,1741572640086,-175.27980184,9.999e-05,2]
[355798237,1741572640098,-204.72019816,9.999e-05,2]
[355798238,1741572640110,-11846.01142932,9.999e-05,2]
[355798239,1741572640122,-24377.44894553,0.0001,2]
[355798240,1741572640136,-3328.04163244,0.0001,2]
[355798241,1741572640154,-1742.80500001,0.0001,2]
[355798242,1741572640398,-681.29859775,0.0001,2]
[355798243,1741572640413,-398.50106277,0.0001,2]
[355798244,1741572640427,-36630.49664048,0.0001,2]
[355798265,1741572645718,-54571.62677599,0.0001,2]
[355798266,1741572645730,-4341.95994,0.0001,2]
[355798267,1741572645741,-254.84440328,0.0001,2]
[355798268,1741572645757,-123672.97700175,0.0001,2]
[355798270,1741572645767,-821.0,0.0001,2]
[355798271,1741572645776,-696448.16419534,0.0001,2]
[355798272,1741572645788,-676.96199,0.0001,2]
[355798273,1741572645799,-823.78370028,0.0001,2]
[355798275,1741572646215,-1289.20747591,0.0001,2]
[355798276,1741572646230,-872.98136323,0.0001,2]
[355798277,1741572646260,-858.25299,0.0001,2]
[355798278,1741572646272,-53325.17812218,0.0001,2]
[355798279,1741572646347,-42876.21030001,0.0001,2]
[355798280,1741572646359,-11258.40135739,0.0001,2]
[355798281,1741572646370,-32828.8,0.0001,2]
[355798282,1741572646382,-5399.69510845,0.0001,2]
[355798283,1741572646395,-5510.1542467,0.0001,2]
[355798284,1741572646407,-41540.69499143,0.0001,2]
[355798285,1741572646417,-204.0,0.0001,2]
[355798286,1741572646426,-29055.30500857,0.0001,2]
[355798287,1741572646438,-1642.35360485,0.0001,2]
[355798288,1741572646450,-3505.41432777,0.0001,2]
[355798294,1741572680848,628.80304,0.00028,120]
[355798295,1741572896588,-390.28745514,9e-05,2]
[355798296,1741572948965,-390.2898887,8.219e-05,2]
[355798297,1741572982569,-649.0,8.219e-05,2]
[355798298,1741572982959,-243.8401113,8.219e-05,2]
[355798299,1741573113719,2200.0,0.00028,120]
[355798300,1741573119926,2200.0,0.00028,120]
[355798302,1741573619479,160.59801859,0.00027523,120]
[355798303,1741573632263,159.10705049,0.00027523,120]
[355798310,1741573722944,162.03434525,0.00027523,120]
[355798333,1741573832321,-159.71254486,9e-05,2]
[355798334,1741573832331,-200.0,9.009e-05,2]
[355798335,1741573832342,-169.29,9.035e-05,2]
[355798336,1741573832352,-165.81,9.047e-05,2]
[355798337,1741573832361,-346.47,9.053e-05,2]
[355798338,1741573832371,-250.0,9.072e-05,2]
[355798339,1741573832380,-337.11,9.084e-05,2]
[355798340,1741573832390,-222.44,9.089e-05,2]
[355798341,1741573832401,-1460.78014175,9.115e-05,2]
[355798369,1741573838230,-433.83900439,9.115e-05,2]
[355798373,1741573840530,-1060.8,9.115e-05,2]
[355798390,1741573843833,-1440.61085386,9.115e-05,2]
[355798392,1741573843846,-1000.0,9.213e-05,2]
[355798394,1741573843859,-672.76,9.213e-05,2]
[355798396,1741573843871,-170.82,9.368e-05,2]
[355798398,1741573843883,-171.42,9.451e-05,2]
[355798400,1741573843894,-150.0,9.562e-05,7]
[355798403,1741573843905,-250.32733067,9.883e-05,2]
[355798405,1741573843916,-300.0,9.898e-05,2]
[355798407,1741573843927,-2277.097,9.9e-05,2]
[355798409,1741573843938,-150.0,9.9e-05,2]
[355798411,1741573843949,-150.0,9.9e-05,2]
[355798413,1741573843960,-4327.99477896,9.945e-05,2]
[355798416,1741573843974,-4011.29080858,9.945e-05,2]
[355798421,1741573843988,-331.40167,9.945e-05,2]
[355798427,1741573844008,-1012.97035628,9.945e-05,2]
[355798432,1741573844021,-1795.66259684,9.945e-05,2]
[355798435,1741573844034,-1039.9999,9.945e-05,2]
[355798486,1741573846152,-1569.62304387,9.945e-05,2]
[355798490,1741573846188,-650.55056437,9.945e-05,2]
[355798492,1741573846200,-1131.90187909,9.945e-05,2]
[355798504,1741573846360,-10445.25862933,9.945e-05,2]
[355798506,1741573846370,-1144.616,9.97e-05,2]
[355798508,1741573846380,-150.0,9.997e-05,2]
[355798509,1741573846389,-4372.7969556,9.998e-05,2]
[355798511,1741573846399,-228.82444129,9.998e-05,2]
[355798521,1741573846516,-2480.19572577,9.998e-05,2]
[355798523,1741573846528,-599.38775637,9.998e-05,2]
[355798556,1741574017896,1218.97,8.219e-05,2]
[355798557,1741574573337,-252.47,9.102e-05,2]
[355798567,1741574921273,-300.0,0.0001,14]
[355798568,1741574922789,-300.0,0.0001,14]
[355798569,1741574923686,-300.0,0.0001,14]
[355798570,1741574924439,-300.0,0.0001,14]
[355798571,1741574925204,-300.0,0.0001,14]
[355798572,1741574925969,-300.0,0.0001,14]
[355798573,1741574926751,-300.0,0.0001,14]
[355798574,1741574927513,-300.0,0.0001,14]
[355798579,1741574953564,-300.0,0.0001,14]
[355798580,1741574955703,-300.0,0.0001,14]
[355798581,1741574973696,-300.0,0.0001,14]
[355798582,1741574989093,-300.0,0.0001,14]
[355798583,1741574990979,-300.0,0.0001,14]
[355798585,1741575031458,-350.46750866,9e-05,2]
[355798586,1741575031511,-199.53249134,9e-05,2]
[355798587,1741575031521,-250.0,9.044e-05,2]
[355798588,1741575031530,-160.43,9.051e-05,2]
[355798589,1741575031540,-233.29,9.102e-05,2]
[355798590,1741575031550,-33.23750866,9.179e-05,2]
[355798591,1741575031670,-164.546721,9.8e-05,2]
[355798592,1741575031680,-141.453279,9.8e-05,2]
[355798593,1741575031929,-158.936721,9.8e-05,2]
[355798594,1741575031939,-150.0,9.899e-05,2]
[355798595,1741575031949,-1901.0564,9.9e-05,2]
[355798596,1741575031958,-511.1429,9.9e-05,2]
[355798597,1741575031968,-3860.0394,9.9e-05,2]
[355798598,1741575031978,-2480.5102,9.9e-05,2]
[355798599,1741575031988,-446.04,9.9e-05,2]
[355798600,1741575031999,-5000.0,9.9e-05,2]
[355798601,1741575032008,-550.0,9.9e-05,2]
[355798602,1741575032017,-150.0,9.9e-05,2]
[355798603,1741575032026,-5214.90776827,9.969e-05,2]
[355798621,1741575037388,-1000.0,9.284e-05,2]
[355798622,1741575037398,-913.90787291,9.972e-05,2]
[355798623,1741575037409,-1.78512709,9.972e-05,2]
[355798624,1741575037419,-1885.75790678,9.972e-05,2]
[355798625,1741575037442,-3297.11209322,9.972e-05,2]
[355798626,1741575037453,-150.0,9.98e-05,2]
[355798627,1741575037463,-300.0,9.98e-05,2]
[355798628,1741575037473,-300.0,9.98e-05,2]
[355798629,1741575037483,-10589.45870725,9.998e-05,2]
[355798630,1741575037494,-2998.27904223,9.998e-05,2]
[355798631,1741575037511,-340.478,9.998e-05,2]
[355798632,1741575037522,-3177.30720146,9.998e-05,2]
[355798633,1741575037535,-1027.91000002,9.998e-05,2]
[355798634,1741575037551,-3457.50798239,9.998e-05,2]
[355798635,1741575037561,-3438.8168451,9.998e-05,2]
[355798636,1741575037570,-1000.0,9.999e-05,2]
[355798637,1741575037579,-1000.0,9.999e-05,2]
[355798638,1741575037589,-1000.0,9.999e-05,2]
[355798639,1741575037599,-778.1755,9.999e-05,2]
[355798640,1741575037609,-866.83507253,9.999e-05,2]
[355798641,1741575037619,-1495.94,9.999e-05,2]
[355798642,1741575037628,-500.0,9.999e-05,2]
[355798643,1741575037638,-500.0,9.999e-05,2]
[355798644,1741575037647,-500.0,9.999e-05,2]
[355798646,1741575037876,-500.0,9.999e-05,2]
[355798647,1741575037886,-287.83955073,9.999e-05,2]
[355798649,1741575037896,-500.0,9.999e-05,2]
[355798650,1741575037905,-500.0,9.999e-05,2]
[355798651,1741575037915,-478.68504925,9.999e-05,2]
[355798652,1741575037926,-21.31495075,9.999e-05,2]
[355798653,1741575037936,-322.21899169,9.999e-05,2]
[355798654,1741575037948,-177.78100831,9.999e-05,2]
[355798655,1741575037958,-500.0,9.999e-05,2]
[355798656,1741575037968,-500.0,9.999e-05,2]
[355798657,1741575037978,-250.0,9.999e-05,2]
[355798658,1741575037987,-541.06879262,9.999e-05,2]
[355798659,1741575037998,-16036.87586836,0.0001,2]
[355798660,1741575038011,-513.49700321,0.0001,2]
[355798661,1741575038023,-524.13231065,0.0001,2]
[355798662,1741575038034,-962.51523225,0.0001,2]
[355798665,1741575039440,-801.81421915,0.0001,2]
[355798666,1741575039452,-8512.2085921,0.0001,2]
[355798667,1741575039464,-498.90361071,0.0001,2]
[355798668,1741575039476,-1250.9185,0.0001,2]
[355798669,1741575039492,-206584.72701191,0.0001,2]
[355798670,1741575039504,-14314.40765166,0.0001,2]
[355798671,1741575039514,-433.2009349,0.0001,2]
[355798672,1741575039547,-232.7990651,0.0001,2]
[355798673,1741575039556,-834.226,0.0001,2]
[355798674,1741575039566,-291.9749349,0.0001,2]
[355798675,1741575039577,-1169.9960651,0.0001,2]
[355798676,1741575039586,-642.26,0.0001,2]
[355798677,1741575039596,-572.0,0.0001,2]
[355798678,1741575039605,-3932.0,0.0001,2]
[355798679,1741575039615,-150.0,0.0001,2]
[355798680,1741575039624,-20344.79874919,0.0001,2]
[355798681,1741575039643,-2024.28603338,0.0001,2]
[355798682,1741575039658,-2339.44757877,0.0001,2]
[355798683,1741575039670,-367.03000001,0.0001,2]
[355798684,1741575039711,-2884.84977065,0.0001,2]
[355798685,1741575039722,-2451.1127707,0.0001,2]
[355798686,1741575039767,-1076.21349426,0.0001,2]
[355798687,1741575039779,-4821.6798791,0.0001,2]
[355798688,1741575039790,-308.94361421,0.0001,2]
[355798689,1741575039802,-1438.88980532,0.0001,2]
[355798690,1741575039814,-1386.26818162,0.0001,2]
[355798691,1741575039825,-999.5000125,0.0001,2]
[355798692,1741575039837,-2082.375,0.0001,2]
[355798693,1741575039861,-599.9976661,9.969e-05,2]
[355798710,1741575042431,-22113.77774051,9.969e-05,2]
[355798711,1741575042443,-615.40926904,9.969e-05,2]
[355798712,1741575042455,-2679.73408555,9.969e-05,2]
[355798713,1741575042466,-3491.26591445,0.0001,2]
[355798714,1741575042489,-8436.6,0.0001,2]
[355798715,1741575042501,-8502.39998162,0.0001,2]
[355798716,1741575042513,-5418.13968742,0.0001,2]
[355798717,1741575042538,-1740.01,0.0001,2]
[355798718,1741575042549,-844.70908518,0.0001,2]
[355798719,1741575042561,-620.60000009,0.0001,2]
[355798720,1741575042572,-476.95478047,0.0001,2]
[355798721,1741575042583,-799.67334116,0.0001,2]
[355798722,1741575042599,-1550.55192851,0.0001,2]
[355798749,1741575045379,-1809.45183458,0.0001,2]
[355798752,1741575045390,-422.9555182,0.0001,2]
[355798757,1741575045432,-1344.02241966,0.0001,2]
[355798781,1741575045790,-2234.41498821,0.0001,2]
[355798782,1741575045802,-51995.000003,0.0001,2]
[355798783,1741575045815,-8299.51077247,0.0001,2]
[355798784,1741575045838,-2770.199998,0.0001,2]
[355798785,1741575045849,-4571.0,0.0001,2]
[355798786,1741575045860,-586.511,0.0001,2]
[355798787,1741575142663,1221.29,8.219e-05,2]
[355798793,1741575977630,-27398.0,0.0001,14]
[355798794,1741576076309,198.0,0.00028,120]
[355798795,1741576077793,198.0,0.00028,120]
[355798796,1741576101292,200.0,0.00028,120]
[355798813,1741576231608,-507.145,9.102e-05,2]
[355798814,1741576231620,-4208.01786348,9.102e-05,2]
[355798815,1741576231716,-436.40005832,9.102e-05,2]
[355798816,1741576231770,-6655.20901477,9.102e-05,2]
[355798817,1741576231782,-346.17549988,9.102e-05,2]
[355798818,1741576231825,-2413.42761573,9.102e-05,2]
[355798819,1741576231837,-915.6071618,9.102e-05,2]
[355798820,1741576231932,-254.89,9.102e-05,2]
[355798821,1741576231945,-983.94936565,9.102e-05,2]
[355798910,1741576237529,-1144.63046961,9.102e-05,2]
[355798911,1741576237542,-454.41795076,9.102e-05,2]
[355798912,1741576237552,-186.22,9.153e-05,2]
[355798913,1741576237563,-76.6947102,9.178e-05,2]
[355798914,1741576237575,-104.6152898,9.178e-05,2]
[355798915,1741576237587,-273.38984107,9.212e-05,2]
[355798916,1741576237600,-226.61015893,9.212e-05,2]
[355798917,1741576237610,-1000.0,9.895e-05,2]
[355798918,1741576237619,-198.0,9.9e-05,2]
[355798919,1741576237629,-198.0,9.9e-05,2]
[355798920,1741576237640,-1977.38984107,9.945e-05,2]
[355798921,1741576237655,-2912.48,9.945e-05,2]
[355798922,1741576237742,-4821.67992046,9.945e-05,2]
[355798923,1741576237754,-1322.96327026,9.945e-05,2]
[355798924,1741576237850,-824.45,9.945e-05,2]
[355798929,1741576239626,-413.15347707,9.945e-05,2]
[355798930,1741576239639,-2276.90767204,9.945e-05,2]
[355798931,1741576239680,-1028.73542977,9.945e-05,2]
[355798932,1741576239691,-786.49262927,9.945e-05,2]
[355798933,1741576239703,-1289.71442387,9.945e-05,2]
[355798934,1741576239733,-1714.05964372,9.945e-05,2]
[355798935,1741576239744,-452.18262213,9.945e-05,2]
[355798936,1741576239756,-2592.4346909,9.945e-05,2]
[355798937,1741576239790,-2729.31118193,9.945e-05,2]
[355798938,1741576239800,-550.0,9.949e-05,2]
[355798939,1741576239809,-152.48,9.95e-05,2]
[355798940,1741576239820,-153.92,9.95e-05,2]
[355798941,1741576239829,-150.0,9.95e-05,2]
[355798942,1741576239839,-888.4,9.95e-05,2]
[355798943,1741576239848,-150.0,9.95e-05,2]
[355798944,1741576239858,-150.0,9.95e-05,2]
[355798945,1741576239867,-1197.057,9.972e-05,2]
[355798946,1741576239876,-150.0,9.994e-05,2]
[355798947,1741576239886,-1860.15501802,9.995e-05,2]
[355798948,1741576239898,-4000.39879996,9.995e-05,2]
[355798949,1741576239957,-17223.46365979,9.995e-05,2]
[355798950,1741576240002,-565.20815368,9.995e-05,2]
[355798951,1741576240013,-4470.272925,9.995e-05,2]
[355798956,1741576242673,-148914.46744634,9.995e-05,2]
[355798957,1741576242683,-8261.2423357,9.998e-05,2]
[355798958,1741576242693,-2577.3402253,9.998e-05,2]